bitfinex/quotes_ETHUSD_20250126
["timestamp","ask_amount","ask_price","bid_price","bid_amount"]
[1737864551993,0.02961726,3343.2,3343.0,2.99128]
[1737864552199,0.7755,3343.1,3343.0,2.99128]
[1737864552394,0.7755,3343.1,3342.6,2.99167]
[1737864552619,0.80505814,3343.1,3342.6,2.99167]
[1737864552931,0.7755,3343.0,3342.6,2.99167]
[1737864553081,0.7755,3343.0,3342.7,2.99157]
[1737864553427,0.7755,3342.8,3342.7,2.99157]
[1737864553587,0.8047491,3342.8,3342.7,2.99157]
[1737864562638,0.8047491,3342.8,3342.3,2.99193]
[1737864563341,0.772,3342.7,3342.3,2.99193]
[1737864563743,0.772,3342.5,3342.3,2.99193]
[1737864564144,0.02858959,3342.4,3342.3,2.99193]
[1737864565073,0.02858959,3342.4,3342.1,2.9921]
[1737864565383,0.772,3342.3,3342.1,2.9921]
[1737864565682,0.02847129,3342.2,3342.0,2.99221]
[1737864565879,0.02847129,3342.2,3341.8,2.99239]
[1737864566188,0.02847129,3342.2,3341.9,2.9923]
[1737864566342,0.02847129,3342.2,3342.1,2.99213]
[1737864566881,0.772,3342.3,3342.1,2.99213]
[1737864567077,0.02839056,3342.2,3342.1,2.99213]
[1737864567296,0.772,3342.3,3342.1,2.99213]
[1737864567582,0.02839056,3342.2,3342.1,2.99213]
[1737864567888,0.772,3342.3,3342.1,2.99213]
[1737864568184,0.02839056,3342.2,3342.1,2.99213]
[1737864568545,0.772,3342.3,3342.1,2.99213]
[1737864568775,0.02839056,3342.2,3342.1,2.99213]
[1737864573189,0.02839056,3342.2,3341.9,2.9923]
[1737864573349,0.772,3342.3,3341.9,2.9923]
[1737864573860,0.772,3342.3,3342.0,2.99214]
[1737864580467,0.772,3342.3,3342.1,2.99212]
[1737864583364,4.16115255,3343.3,3342.2,2.99204]
[1737864583365,0.8005,3343.0,3342.2,2.99204]
[1737864583570,0.8005,3343.0,3342.4,2.99185]
[1737864583766,0.8005,3343.0,3342.7,2.99157]
[1737864583767,0.04386496,3342.9,3342.7,2.99157]
[1737864584082,0.8005,3343.0,3342.7,3.290727]
[1737864584257,0.03949441,3342.9,3342.7,2.99157]
[1737864585490,0.03949441,3342.9,3342.5,3.02167429]
[1737864585653,0.8005,3342.8,3342.2,3.0]
[1737864585853,2.99139,3343.0,3342.2,2.99195]
[1737864586097,0.83999441,3342.9,3342.3,3.0]
[1737864586968,0.83999441,3342.9,3342.3,5.99192]
[1737864588396,0.7576,3342.8,3342.3,3.0]
[1737864588595,0.7576,3342.6,3342.0,2.99221]
[1737864588796,0.374919,3342.5,3342.0,2.99221]
[1737864588959,3.03527556,3342.7,3342.0,2.99221]
[1737864588960,0.7576,3342.4,3342.0,2.99221]
[1737864589467,0.7576,3342.4,3342.1,2.99211]
[1737864589790,0.7576,3342.4,3342.3,2.99195]
[1737864590168,0.7521,3342.8,3342.4,2.99177]
[1737864590550,0.04368556,3342.7,3342.5,2.99175]
[1737864590978,0.7521,3342.8,3342.5,2.99175]
[1737864591370,0.04368556,3342.7,3342.5,2.99175]
[1737864592002,0.04368556,3342.7,3342.2,3.02192728]
[1737864592293,0.00998164,3343.3,3342.2,2.99201]
[1737864592294,0.7521,3342.6,3342.2,2.99201]
[1737864592496,0.795687,3342.6,3342.2,2.99201]
[1737864592797,0.7521,3342.8,3342.4,2.99186]
[1737864593202,0.7521,3342.8,3342.1,2.9921]
[1737864593203,0.7521,3342.6,3342.2,2.99199]
[1737864593562,0.795687,3342.6,3342.2,2.99199]
[1737864596626,0.795687,3342.6,3342.1,2.9921]
[1737864596627,0.795687,3342.6,3342.0,2.99218]
[1737864596831,0.8066,3342.5,3342.0,2.99218]
[1737864597421,0.678993,3342.5,3342.0,2.99218]
[1737864597621,0.8066,3342.4,3342.0,2.99218]
[1737864598231,0.8066,3342.3,3341.7,5.99246]
[1737864598444,0.8066,3342.3,3341.8,2.99238]
[1737864599620,0.8066,3342.1,3341.3,0.7528]
[1737864599803,0.8066,3342.1,3341.4,2.99275]
[1737864599999,0.8066,3342.1,3341.2,3.18791]
[1737864600334,0.8066,3342.1,3341.4,2.99267]
[1737864600515,0.8066,3341.9,3341.2,2.99289]
[1737864600718,1.16006091,3342.2,3341.0,0.31229377]
[1737864600719,0.8066,3341.7,3341.0,0.31229377]
[1737864600887,0.8066,3341.6,3341.0,2.99309]
[1737864601086,0.8066,3341.6,3341.1,2.99302]
[1737864601300,0.8066,3341.6,3340.9,3.30554636]
[1737864601518,0.8066,3341.6,3341.0,2.99309]
[1737864601735,0.8066,3341.4,3340.9,3.30554636]
[1737864601947,0.8066,3341.4,3340.9,0.31236636]
[1737864602243,0.8066,3341.4,3341.0,2.9931]
[1737864602409,0.8066,3341.4,3341.3,2.99284]
[1737864603643,0.8066,3341.4,3341.1,2.99299]
[1737864605105,0.8066,3341.4,3340.9,2.99319]
[1737864605325,0.8066,3341.4,3341.2,2.99293]
[1737864607199,0.7663,3341.7,3341.2,2.99293]
[1737864607400,0.7663,3342.4,3341.6,2.99257]
[1737864607629,3.75818,3342.4,3341.7,2.99248]
[1737864607804,1.03491196,3342.3,3341.7,2.99248]
[1737864608339,3.75818,3342.4,3341.7,2.99248]
[1737864608942,0.7663,3342.4,3341.8,2.99237]
[1737864610434,0.7663,3342.4,3341.9,2.99229]
[1737864612112,0.7663,3342.4,3341.7,2.99248]
[1737864612314,3.75816,3342.4,3341.7,2.99248]
[1737864612516,3.75816,3342.4,3341.6,0.02992255]
[1737864612855,3.75816,3342.4,3341.8,2.99238]
[1737864616859,0.7663,3342.4,3341.8,2.99238]
[1737864619146,2.99195,3342.3,3341.6,2.99256]
[1737864619478,3.82405,3342.3,3341.6,2.99256]
[1737864620122,3.82405,3342.3,3341.7,2.99245]
[1737864621201,0.8321,3342.2,3341.7,2.99245]
[1737864627088,0.79761985,3342.2,3341.2,3.0]
[1737864627326,0.8321,3341.8,3341.2,2.99285]
[1737864627492,0.8321,3341.6,3341.0,2.99305]
[1737864628092,0.8321,3341.5,3341.0,2.99305]
[1737864628551,0.8321,3341.5,3340.9,3.30551673]
[1737864629155,0.8321,3341.5,3340.9,0.31231673]
[1737864629156,1.51381,3341.5,3340.9,0.31231673]
[1737864629362,2.99284,3341.3,3340.9,0.31231673]
[1737864629519,0.7546,3341.2,3340.9,0.31231673]
[1737864629857,0.7546,3341.2,3340.5,2.99353]
[1737864630258,3.04091849,3341.8,3340.3,2.99373]
[1737864630259,0.7546,3341.0,3340.3,2.99373]
[1737864630471,1.428654,3341.0,3340.4,2.99362]
[1737864630622,0.7546,3341.0,3340.4,2.99362]
[1737864632147,0.05577872,3340.9,3340.4,2.99362]
[1737864633472,0.05577872,3340.9,3340.5,2.99349]
[1737864633618,0.05577872,3340.9,3340.8,2.99329]
[1737864634049,0.7546,3341.2,3340.9,2.99319]
[1737864635649,0.8291,3341.6,3341.1,2.993]
[1737864636070,0.8291,3341.6,3340.9,2.99319]
[1737864636578,0.8291,3341.6,3341.0,2.99306]
[1737864636782,0.8291,3341.6,3340.9,2.99319]
[1737864636783,3.82169,3341.6,3340.9,2.99319]
[1737864637573,3.82169,3341.6,3340.9,2.99314]
[1737864638480,3.82169,3341.6,3341.0,2.99308]
[1737864638775,3.82169,3341.6,3340.8,2.99323]
[1737864638975,3.82169,3341.6,3340.9,2.99318]
[1737864639176,3.82169,3341.6,3341.0,2.9931]
[1737864640092,4.56307121,3341.6,3341.0,2.9931]
[1737864640291,1.57048121,3341.6,3340.7,3.02329927]
[1737864640463,4.56314121,3341.6,3340.9,2.99315]
[1737864640848,3.04842205,3341.5,3340.9,2.99315]
[1737864641672,0.05575205,3341.5,3340.8,2.99329]
[1737864641847,0.05575205,3341.5,3341.0,2.9931]
[1737864642963,0.05575205,3341.5,3341.2,2.99285]
[1737864646010,0.05575205,3341.5,3341.0,2.9931]
[1737864651036,0.05575205,3341.5,3341.1,3.02286695]
[1737864651222,0.05575205,3341.5,3341.2,2.99285]
[1737864651420,0.05575205,3341.5,3341.2,4.35892169]
[1737864651750,3.77195,3342.1,3341.4,2.99269]
[1737864651898,3.77195,3342.1,3341.5,2.99264]
[1737864653198,3.77195,3342.1,3341.3,3.02270695]
[1737864653396,3.77195,3342.1,3341.4,0.73816886]
[1737864654037,3.77195,3342.1,3341.4,3.73083886]
[1737864655871,3.04834711,3342.0,3341.4,3.73083886]
[1737864656530,0.05610711,3342.0,3341.4,3.73083886]
[1737864657034,3.04834711,3342.0,3341.4,3.73083886]
[1737864661680,0.05610711,3342.0,3341.9,2.9923]
[1737864662041,0.7937,3342.4,3341.9,2.9923]
[1737864662597,0.05634983,3342.3,3341.9,2.9923]
[1737864663495,0.05634983,3342.3,3342.0,2.99214]
[1737864663652,0.05634983,3342.3,3342.0,3.5935851]
[1737864666355,0.05634983,3342.3,3342.2,2.99204]
[1737864666660,0.7937,3342.7,3342.2,2.99204]
[1737864667168,0.05664358,3342.6,3342.2,2.99204]
[1737864667372,0.05664358,3342.6,3342.0,3.5935851]
[1737864667754,0.7937,3342.5,3342.0,3.5935851]
[1737864667960,0.85040652,3342.5,3342.0,3.5935851]
[1737864669498,0.85040652,3342.5,3342.1,0.66158833]
[1737864671017,0.85040652,3342.5,3342.1,2.99212]
[1737864677351,0.85040652,3342.5,3341.9,2.9923]
[1737864677557,0.85040652,3342.5,3342.2,2.99203]
[1737864680665,0.85040652,3342.5,3342.0,2.99216]
[1737864681657,0.85040652,3342.5,3342.1,2.9921]
[1737864684201,0.85040652,3342.5,3342.2,2.99201]
[1737864688750,0.05670652,3342.5,3342.2,2.99201]
[1737864688919,0.05670652,3342.5,3342.2,3.671422]
[1737864689253,0.8032,3342.8,3342.2,3.671422]
[1737864689449,0.05669141,3342.4,3342.2,2.99201]
[1737864689749,3.79473,3342.8,3342.2,2.99201]
[1737864689947,0.05663318,3342.3,3342.2,2.99201]
[1737864690452,3.79473,3342.8,3342.2,2.99201]
[1737864690747,0.05663318,3342.3,3342.2,2.99201]
[1737864690977,3.79473,3342.8,3342.2,2.99201]
[1737864691155,0.05663106,3342.3,3342.2,2.99201]
[1737864691651,0.05661065,3342.3,3342.2,2.99201]
[1737864691848,3.79473,3342.8,3342.2,2.99201]
[1737864692056,0.05663106,3342.3,3342.2,2.99201]
[1737864692265,3.79473,3342.8,3342.2,2.99201]
[1737864692472,0.05663106,3342.3,3342.2,2.99201]
[1737864692651,3.79473,3342.8,3342.2,2.99201]
[1737864692970,0.05663106,3342.3,3342.2,2.99201]
[1737864693156,0.7603,3342.4,3342.2,2.99201]
[1737864693470,0.05663106,3342.3,3342.2,2.99201]
[1737864694352,0.05663106,3342.3,3342.1,2.99212]
[1737864694667,2.99205,3342.2,3341.6,2.99257]
[1737864694885,0.7787,3342.1,3341.6,2.99257]
[1737864695086,0.83517846,3342.1,3341.6,2.99257]
[1737864698185,0.83517846,3342.1,3340.9,0.8056]
[1737864698394,0.7787,3341.8,3341.2,2.99292]
[1737864698541,0.7787,3341.8,3341.3,2.99284]
[1737864698742,0.05602165,3341.7,3341.3,3.591435]
[1737864699587,0.05602165,3341.7,3341.3,2.99284]
[1737864700083,0.8167,3341.6,3341.1,2.99302]
[1737864700441,0.05586049,3341.5,3341.1,2.99302]
[1737864702487,0.8167,3341.4,3340.9,3.0]
[1737864702997,0.05569506,3341.3,3340.9,3.0]
[1737864703893,0.8167,3341.2,3340.6,2.99345]
[1737864704244,0.05539992,3341.1,3340.6,2.99345]
[1737864704539,0.05539992,3341.1,3340.5,3.0]
[1737864704540,0.8167,3341.0,3340.5,3.0]
[1737864704959,0.05528336,3340.9,3340.5,3.0]
[1737864705157,0.05528336,3340.9,3340.5,2.99354]
[1737864706155,0.05528336,3340.9,3340.3,5.99373]
[1737864706371,0.05528336,3340.9,3340.5,2.99349]
[1737864709204,0.05528336,3340.9,3340.4,3.0]
[1737864709414,0.05528336,3340.9,3340.6,2.99346]
[1737864711814,0.05528336,3340.9,3340.4,5.99364]
[1737864712221,0.8324,3340.8,3340.4,2.99364]
[1737864712871,0.88754852,3340.8,3340.4,2.99364]
[1737864713308,0.88754852,3340.8,3340.5,2.99355]
[1737864713974,0.88754852,3340.8,3340.6,2.99346]
[1737864717131,0.88754852,3340.8,3340.4,2.99359]
[1737864717704,0.88754852,3340.8,3340.3,2.99372]
[1737864718091,0.88754852,3340.8,3340.1,3.30624357]
[1737864718092,0.7913,3340.7,3340.1,0.31235357]
[1737864718330,0.7913,3340.6,3340.1,0.31235357]
[1737864718491,0.7913,3340.6,3339.5,0.8178]
[1737864718492,0.7913,3340.5,3339.9,2.99408]
[1737864718698,0.7913,3340.5,3339.5,0.8178]
[1737864718699,0.84610773,3340.5,3340.0,2.99399]
[1737864719036,0.84610773,3340.5,3340.1,2.9939]
[1737864719402,0.84610773,3340.5,3340.2,2.9938]
[1737864720744,0.84610773,3340.5,3340.1,2.9939]
[1737864720899,0.84610773,3340.5,3339.6,0.02993737]
[1737864721099,0.05480773,3340.5,3340.2,2.99376]
[1737864721297,0.8158,3340.8,3340.2,2.99376]
[1737864721525,0.05466217,3340.4,3340.0,2.99399]
[1737864721735,0.8158,3340.8,3340.2,2.99376]
[1737864721938,0.05452302,3340.3,3340.2,2.99376]
[1737864722098,0.8158,3340.8,3340.2,2.99376]
[1737864722303,0.05452302,3340.3,3340.2,2.99376]
[1737864722829,0.8158,3340.8,3340.2,2.99376]
[1737864723013,2.02672156,3340.8,3340.4,2.99364]
[1737864723343,0.8158,3340.8,3340.5,2.9935]
[1737864724218,0.8158,3340.8,3340.3,2.99374]
[1737864726478,0.8158,3340.8,3340.4,2.99365]
[1737864726632,5.30716563,3341.7,3340.5,0.02993449]
[1737864726828,0.8158,3341.4,3340.5,0.02993449]
[1737864727061,0.8158,3341.4,3340.8,2.99327]
[1737864727275,3.80857,3341.4,3340.8,2.99327]
[1737864728533,0.8158,3341.4,3340.9,2.99318]
[1737864730869,0.05516756,3341.3,3340.9,2.99318]
[1737864731542,0.05516756,3341.3,3341.1,2.99302]
[1737864735547,0.05516756,3341.3,3341.2,2.99293]
[1737864735961,0.8087,3341.7,3341.3,2.99282]
[1737864736287,0.05550404,3341.6,3341.3,2.99282]
[1737864740584,0.05550404,3341.6,3341.4,2.99275]
[1737864741389,0.05550404,3341.6,3341.5,2.99266]
[1737864741589,0.8087,3341.9,3341.7,2.99241]
[1737864742085,0.05566308,3341.8,3341.7,2.99241]
[1737864744157,0.8087,3342.1,3341.7,2.99241]
[1737864744782,0.05577957,3342.0,3341.7,2.99241]
[1737864749178,0.05577957,3342.0,3341.8,0.22176533]
[1737864750129,0.05577957,3342.0,3341.9,0.22176533]
[1737864750575,0.7591,3342.0,3341.9,0.22176533]
[1737864750906,0.81102317,3342.0,3341.9,0.22176533]
[1737864751580,0.81102317,3342.0,3341.6,0.22176533]
[1737864752929,0.81102317,3342.0,3341.7,0.22176533]
[1737864754501,0.81102317,3342.0,3341.8,0.22176533]
[1737864755933,0.81102317,3342.0,3341.5,2.99265]
[1737864756744,0.81102317,3342.0,3341.6,2.99257]
[1737864757032,0.05192317,3342.0,3341.6,2.99257]
[1737864757211,0.05192317,3342.0,3341.9,2.9923]
[1737864757413,0.773,3342.3,3341.9,2.9923]
[1737864757939,0.05229169,3342.2,3341.9,2.9923]
[1737864758983,0.05229169,3342.2,3342.0,0.22214718]
[1737864760331,0.05229169,3342.2,3342.1,0.22214718]
[1737864762537,0.82529169,3342.2,3342.1,0.22214718]
[1737864763938,4.19905686,3342.2,3342.1,0.22214718]
[1737864764308,5.35951369,3342.2,3342.1,0.22214718]
[1737864764642,10.66667932,3342.2,3342.1,0.22214718]
[1737864765532,0.773,3341.3,3340.7,0.22214718]
[1737864765735,0.773,3341.3,3340.8,3.0]
[1737864765907,0.05196295,3341.2,3340.8,3.0]
[1737864766104,0.773,3341.3,3340.8,3.0]
[1737864766324,0.05190467,3341.1,3340.8,3.0]
[1737864766525,0.773,3341.3,3340.8,3.0]
[1737864767037,0.05200482,3341.2,3340.9,0.22214718]
[1737864767221,0.773,3341.3,3340.9,0.22214718]
[1737864767638,0.05179006,3341.2,3340.9,0.22214718]
[1737864767842,0.773,3341.3,3340.9,0.22214718]
[1737864768165,0.05175031,3341.2,3340.9,0.22214718]
[1737864768514,3.76584,3341.3,3340.9,0.22214718]
[1737864768710,0.05169204,3341.1,3340.9,0.22214718]
[1737864769047,0.773,3341.3,3341.0,0.22214718]
[1737864769253,0.773,3341.1,3341.0,0.22214718]
[1737864769419,3.76602,3341.1,3341.0,0.22214718]
[1737864770037,0.773,3341.1,3340.4,0.22214718]
[1737864770267,2.99314,3341.0,3340.4,0.22214718]
[1737864771561,2.99114,3341.0,3340.4,0.22214718]
[1737864771730,2.99114,3341.0,3340.5,0.22214718]
[1737864773222,2.99114,3341.0,3340.6,0.22214718]
[1737864774558,2.99114,3341.0,3340.7,0.22214718]
[1737864775533,0.773,3341.1,3340.7,0.22214718]
[1737864775856,0.05157778,3341.0,3340.7,0.22214718]
[1737864776362,0.05157778,3341.0,3340.5,0.22214718]
[1737864776564,0.05157778,3341.0,3340.5,3.21569718]
[1737864776767,0.05157778,3341.0,3340.5,3.91866327]
[1737864777419,0.05157778,3341.0,3340.6,0.22214718]
[1737864778351,0.05157778,3341.0,3340.7,3.76166]
[1737864778516,5.30716563,3341.4,3340.7,3.79159373]
[1737864778721,0.0515195,3340.9,3340.8,2.9932]
[1737864778951,5.30716563,3341.4,3340.9,2.99319]
[1737864780560,5.30716563,3341.4,3341.0,0.22214718]
[1737864780765,5.30716563,3341.4,3341.0,3.21525718]
[1737864780978,5.30716563,3341.4,3341.0,0.22214718]
[1737864781268,0.8098,3341.7,3341.1,2.993]
[1737864781564,0.8098,3341.7,3341.2,0.32151472]
[1737864781771,9.10918563,3342.0,3341.4,2.99273]
[1737864782068,9.10919563,3342.0,3341.4,2.99273]
[1737864782465,9.10919563,3342.0,3341.3,0.22214718]
[1737864782643,2.9924,3341.8,3341.3,0.22214718]
[1737864784178,2.99113486,3341.8,3341.3,0.22214718]
[1737864784465,0.8098,3341.7,3341.3,0.22214718]
[1737864784768,2.99264,3341.6,3341.3,0.22214718]
[1737864784967,2.9927,3341.5,3341.3,0.22214718]
[1737864786371,2.9927,3341.5,3341.0,0.22214718]
[1737864788271,2.9927,3341.5,3341.1,0.22214718]
[1737864788471,2.99293,3341.2,3341.1,0.22214718]
[1737864789515,2.99293,3341.2,3340.7,0.22214718]
[1737864789870,0.7802,3341.3,3340.7,0.22214718]
[1737864790073,0.799,3341.6,3340.7,3.21548718]
[1737864790280,0.799,3341.8,3340.9,0.7654]
[1737864790587,3.79141,3341.8,3341.1,2.99295]
[1737864790818,8.29939563,3342.0,3341.1,2.99295]
[1737864790819,5.30716563,3342.0,3341.2,3.78824882]
[1737864790973,0.04890062,3341.7,3341.4,2.99269]
[1737864791174,5.30716563,3342.0,3341.4,2.99269]
[1737864791378,0.04884237,3341.6,3341.4,2.99269]
[1737864791579,5.30716563,3342.0,3341.4,2.99269]
[1737864791774,0.04878411,3341.5,3341.4,3.02261578]
[1737864792119,5.30716563,3342.0,3341.7,2.99246]
[1737864792479,0.04906185,3341.9,3341.7,2.99246]
[1737864793408,0.04906185,3341.9,3341.8,3.75779]
[1737864793594,0.04906185,3341.9,3341.8,3.78771081]
[1737864793815,0.799,3342.3,3341.8,3.78771081]
[1737864794015,0.799,3342.3,3341.8,3.75779]
[1737864794214,0.04909759,3342.2,3341.8,3.97993718]
[1737864794410,0.04909759,3342.2,3341.9,2.9923]
[1737864794812,0.04909759,3342.2,3342.0,2.99221]
[1737864795138,0.04903935,3342.1,3342.0,2.99221]
[1737864795545,0.7563,3342.5,3341.8,1.7042869]
[1737864795839,3.74812,3342.5,3341.8,3.97990718]
[1737864795999,3.04109406,3342.4,3341.8,3.97990718]
[1737864796202,2.99196,3342.3,3341.8,0.98754718]
[1737864796402,2.99196,3342.3,3342.1,0.22214718]
[1737864796602,0.04909759,3342.2,3342.1,0.22214718]
[1737864797445,4.17717335,3342.2,3342.1,0.22214718]
[1737864797814,1.18513335,3342.2,3342.1,0.22214718]
[1737864798020,0.80539759,3342.2,3341.9,0.22214718]
[1737864798434,0.80539759,3342.2,3342.1,2.99213]
[1737864798435,0.04909759,3342.2,3342.1,2.99213]
[1737864798930,0.7563,3343.0,3342.4,2.99182]
[1737864799306,0.0499126,3342.9,3342.4,2.99182]
[1737864800021,0.0499126,3342.9,3342.5,2.99175]
[1737864802471,0.0499126,3342.9,3342.3,2.99193]
[1737864805214,0.0499126,3342.9,3342.4,0.22143134]
[1737864806687,0.0499126,3342.9,3342.4,3.21329134]
[1737864807775,0.0499126,3342.9,3342.4,0.22143134]
[1737864808304,3.0413226,3342.9,3342.2,2.99199]
[1737864809111,2.99157,3342.8,3342.1,2.99213]
[1737864809317,0.04354222,3342.8,3342.2,2.99203]
[1737864809879,0.04354222,3342.8,3342.3,0.22147649]
[1737864812410,0.04354222,3342.8,3342.3,3.21340649]
[1737864812904,0.04354222,3342.8,3342.4,2.99185]
[1737864813072,0.7563,3343.0,3342.5,2.99175]
[1737864813280,0.04377562,3342.9,3342.5,2.99175]
[1737864815730,3.75931,3342.8,3342.2,2.99203]
[1737864815886,3.80298242,3342.8,3342.2,2.99203]
[1737864816713,3.80298242,3342.8,3342.2,3.688614]
[1737864817016,0.81147242,3342.8,3342.2,3.688614]
[1737864817514,0.81147242,3342.8,3342.3,3.24332843]
[1737864817716,0.04367242,3342.8,3342.5,2.9917]
[1737864818013,0.7678,3343.0,3342.5,2.9917]
[1737864818213,0.04378512,3342.7,3342.5,2.9917]
[1737864818511,0.0437269,3342.6,3342.5,3.68486124]
[1737864818713,0.7678,3343.0,3342.5,3.68486124]
[1737864818914,0.0437269,3342.6,3342.5,2.9917]
[1737864819115,0.7678,3343.0,3342.5,2.9917]
[1737864819284,0.0437269,3342.6,3342.5,2.9917]
[1737864819487,0.7678,3343.0,3342.5,2.9917]
[1737864819692,0.0437269,3342.6,3342.5,0.8331]
[1737864820007,6.08494727,3343.3,3342.5,3.82487]
[1737864820168,6.08494727,3343.3,3342.5,4.207357]
[1737864820373,0.04390079,3343.2,3343.0,3.82435]
[1737864820575,5.31714727,3343.3,3343.1,2.99123]
[1737864820785,0.00998164,3343.3,3343.1,2.99123]
[1737864823228,0.00998164,3343.3,3342.8,2.99148]
[1737864823428,0.00998164,3343.3,3342.9,2.99136]
[1737864823776,0.00998164,3343.3,3343.0,2.9913]
[1737864824415,0.00998164,3343.3,3343.2,2.99114]
[1737864824974,0.00998164,3343.3,3343.2,3.82424]
[1737864828430,0.00998164,3343.3,3343.2,2.99114]
[1737864828734,0.04051568,3343.3,3343.2,3.692194]
[1737864831370,0.04051568,3343.3,3343.2,0.701054]
[1737864832043,0.04051568,3343.3,3343.0,0.195]
[1737864833051,0.04051568,3343.3,3342.8,3.3288767]
[1737864833213,0.04051568,3343.3,3342.8,3.5238767]
[1737864834950,0.04051568,3343.3,3342.8,0.5323967]
[1737864835257,0.04051568,3343.3,3342.9,2.99139]
[1737864835422,0.04051568,3343.3,3343.0,3.42675983]
[1737864837713,0.7684,3343.2,3343.0,3.42675983]
[1737864837915,0.79905965,3343.2,3343.0,3.42675983]
[1737864838451,0.79905965,3343.2,3342.8,3.5238667]
[1737864838822,0.79905965,3343.2,3342.8,0.3373967]
[1737864839132,0.7684,3343.2,3342.8,0.3373967]
[1737864839323,0.03040044,3343.1,3342.7,2.99157]
[1737864840655,0.03040044,3343.1,3342.7,2.99153]
[1737864840851,3.02170044,3343.1,3342.4,3.18684]
[1737864841151,2.99141,3342.9,3342.2,3.18697]
[1737864841347,0.7684,3342.8,3342.3,2.99194]
[1737864841655,0.79775395,3342.8,3342.4,0.617904]
[1737864843461,0.79775395,3342.8,3342.3,2.99194]
[1737864847759,0.79775395,3342.8,3342.2,0.84321734]
[1737864848053,0.79775395,3342.8,3342.4,2.99184]
[1737864849316,0.02935395,3342.8,3342.5,0.02991734]
[1737864849555,0.02935395,3342.8,3342.7,3.80149]
[1737864849755,5.30716563,3343.2,3342.7,1.52212128]
[1737864850058,5.30716563,3343.2,3343.0,2.99126]
[1737864850226,0.029334,3343.1,3343.0,2.99126]
[1737864850430,0.029334,3343.1,3343.0,3.02117153]
[1737864850629,0.00998164,3343.3,3343.1,2.99114]
[1737864851042,0.02934271,3343.2,3343.1,2.99114]
[1737864851554,0.02953728,3343.2,3343.0,3.74174513]
[1737864851929,0.00998164,3343.3,3343.0,3.74174513]
[1737864852114,0.02947908,3343.1,3343.0,3.74174513]
[1737864852319,0.00998164,3343.3,3343.0,3.74174513]
[1737864852520,0.02947908,3343.1,3343.0,3.74174513]
[1737864852720,0.00998164,3343.3,3343.0,3.74174513]
[1737864852966,0.02947908,3343.1,3343.0,3.74174513]
[1737864853171,0.00998164,3343.3,3343.0,3.74174513]
[1737864853335,0.00998164,3343.3,3343.1,3.66454351]
[1737864853668,0.00998164,3343.3,3343.2,2.99114]
[1737864854022,0.00998164,3343.3,3343.1,0.67332351]
[1737864854720,0.00998164,3343.3,3343.1,3.66453351]
[1737864857795,0.00998164,3343.3,3343.1,0.67332351]
[1737864858105,0.00998164,3343.3,3343.0,3.02117966]
[1737864858490,0.00998164,3343.3,3343.0,2.99127]
[1737864858670,0.00998164,3343.3,3342.9,2.99139]
[1737864858874,0.00998164,3343.3,3342.9,6.01268966]
[1737864859188,0.00998164,3343.3,3343.0,2.99131]
[1737864859387,0.00998164,3343.3,3343.1,0.60126097]
[1737864860808,0.00998164,3343.3,3342.9,2.99139]
[1737864862403,0.7856,3343.2,3342.9,2.99139]
[1737864866058,0.02968134,3343.1,3342.9,2.99139]
[1737864870105,0.02968134,3343.1,3342.7,3.18658]
[1737864870267,0.02968134,3343.1,3342.7,2.99158]
[1737864872532,0.02968134,3343.1,3342.7,3.686552]
[1737864877576,0.02968134,3343.1,3342.6,5.99166]
[1737864877979,0.7856,3343.2,3342.6,5.99166]
[1737864878415,0.02946754,3343.1,3342.7,2.99159]
[1737864878797,0.8151,3343.0,3342.7,2.99159]
[1737864879007,0.84450288,3343.0,3342.7,2.99159]
[1737864879209,0.84450288,3343.0,3342.7,3.89291737]
[1737864879911,0.84450288,3343.0,3342.3,2.99193]
[1737864880115,3.83589288,3343.0,3342.3,2.99193]
[1737864880323,2.99142,3342.9,3342.3,2.99193]
[1737864880633,0.8151,3342.7,3342.2,3.0]
[1737864881101,0.8151,3342.5,3341.9,3.18729]
[1737864881302,3.80688,3342.5,3341.9,0.195]
[1737864881516,0.02908879,3342.4,3341.9,0.195]
[1737864881833,0.8151,3342.3,3341.8,2.99235]
[1737864882130,0.84392541,3342.3,3341.8,3.64157134]
[1737864882731,0.84392541,3342.3,3341.8,0.64922134]
[1737864883033,0.8151,3342.2,3341.6,3.4998634]
[1737864883192,0.8438434,3342.2,3341.6,3.4998634]
[1737864883392,3.0208534,3342.2,3341.6,0.3123034]
[1737864883710,0.8151,3342.1,3341.6,0.3123034]
[1737864883932,0.8151,3342.1,3341.4,2.99273]
[1737864884114,0.8151,3341.9,3341.5,0.618065]
[1737864884504,0.02851042,3341.8,3341.2,2.99292]
[1737864884708,0.02851042,3341.8,3341.1,0.195]
[1737864884910,0.02851042,3341.8,3341.3,2.99284]
[1737864885233,0.8151,3341.7,3341.3,2.99284]
[1737864885387,0.84357164,3341.7,3341.3,2.99284]
[1737864886112,0.84357164,3341.7,3341.3,0.92108748]
[1737864886623,0.84357164,3341.7,3341.3,3.92108748]
[1737864887117,0.84357164,3341.7,3341.3,3.91391748]
[1737864887319,0.84357164,3341.7,3341.3,3.94384263]
[1737864888239,0.8151,3341.7,3341.3,3.94384263]
[1737864888410,0.8151,3341.7,3341.4,1.01318526]
[1737864893744,0.8151,3341.7,3341.4,4.00593526]
[1737864898231,0.8151,3341.7,3341.4,2.99275]
[1737864900457,0.8151,3341.7,3341.3,3.0]
[1737864902252,0.8151,3341.7,3341.3,2.99278]
[1737864902622,0.7747,3342.0,3341.4,2.99271]
[1737864902835,0.7747,3342.0,3341.5,2.99266]
[1737864903042,0.7747,3342.3,3341.9,2.99224]
[1737864904965,0.7747,3342.3,3341.7,3.74658]
[1737864905136,0.7747,3342.3,3341.7,6.739]
[1737864905475,0.7747,3342.3,3341.7,3.74652]
[1737864905627,0.7747,3342.3,3341.8,3.4044896]
[1737864906156,0.7747,3342.3,3341.8,0.4121196]
[1737864906660,0.7747,3342.3,3341.8,3.4045096]
[1737864906866,0.7747,3342.3,3341.8,3.43443023]
[1737864908891,3.76666,3342.3,3341.8,0.4121196]
[1737864909034,3.76666,3342.3,3341.7,0.7541]